[Event "Titled Tuesday Blitz March 01 Early 2022"]
[White "Urbina Quiroz, Edwin"]
[Black "Iskusnyh, Sergei"]
[WhiteFideId "6500650"]
[BlackFideId "4120027"]
[WhiteElo "2130"]
[BlackElo "2492"]
[Result "0-1"]
[Round "04"]
[TimeControl "180+1"]
[Date "2022.03.01"]
[WhiteClock "0:02:12"]
[BlackClock "0:02:09"]

1. e4 {[%clk 0:03:00]}  e6 {[%clk 0:02:58]} 2. d4 {[%clk 0:03:00]}  d5 {[%clk 0:02:58]} 3. e5 {[%clk 0:03:00]}  c5 {[%clk 0:02:57]} 4. c3 {[%clk 0:03:01]}  Nc6 {[%clk 0:02:57]} 5. Nf3 {[%clk 0:03:02]}  Nh6 {[%clk 0:02:56]} 6. Bd3 {[%clk 0:03:00]}  Nf5 {[%clk 0:02:49]} 7. Bxf5 {[%clk 0:02:59]}  exf5 {[%clk 0:02:49]} 8. Na3 {[%clk 0:02:49]}  cxd4 {[%clk 0:02:47]} 9. cxd4 {[%clk 0:02:50]}  Be7 {[%clk 0:02:38]} 10. h4 {[%clk 0:02:41]}  h6 {[%clk 0:02:35]} 11. Nc2 {[%clk 0:02:33]}  Be6 {[%clk 0:02:33]} 12. h5 {[%clk 0:02:24]}  Rc8 {[%clk 0:02:27]} 13. Be3 {[%clk 0:02:17]}  Qa5+ {[%clk 0:02:14]} 14. Qd2 {[%clk 0:02:12]}  Nb4 {[%clk 0:02:09]} 0-1


[Site "https://www.chess.com"]

[Event "Titled Tuesday Blitz March 01 Early 2022"]
[White "Vetokhin, Ilia"]
[Black "Gelman, Alexander"]
[WhiteFideId "24156078"]
[BlackFideId "4118316"]
[WhiteElo "1897"]
[BlackElo "2375"]
[Result "0-1"]
[Round "04"]
[TimeControl "180+1"]
[Date "2022.03.01"]
[WhiteClock "0:00:01"]
[BlackClock "0:00:28"]

1. d4 {[%clk 0:03:00]}  Nf6 {[%clk 0:02:59]} 2. c4 {[%clk 0:03:00]}  c5 {[%clk 0:03:00]} 3. d5 {[%clk 0:03:00]}  b5 {[%clk 0:03:00]} 4. cxb5 {[%clk 0:03:01]}  a6 {[%clk 0:03:00]} 5. b6 {[%clk 0:03:02]}  d6 {[%clk 0:03:00]} 6. Nc3 {[%clk 0:03:02]}  Nbd7 {[%clk 0:03:01]} 7. a4 {[%clk 0:03:03]}  Qxb6 {[%clk 0:02:59]} 8. a5 {[%clk 0:03:03]}  Qb7 {[%clk 0:02:59]} 9. e4 {[%clk 0:03:04]}  g6 {[%clk 0:02:59]} 10. f4 {[%clk 0:03:05]}  Bg7 {[%clk 0:03:00]} 11. Nf3 {[%clk 0:03:05]}  O-O {[%clk 0:03:00]} 12. Bc4 {[%clk 0:03:06]}  Ne8 {[%clk 0:02:58]} 13. O-O {[%clk 0:03:06]}  Nc7 {[%clk 0:02:59]} 14. Qd3 {[%clk 0:02:46]}  Rb8 {[%clk 0:02:58]} 15. Re1 {[%clk 0:02:45]}  Nb5 {[%clk 0:02:58]} 16. Be3 {[%clk 0:02:38]}  Nf6 {[%clk 0:02:03]} 17. h3 {[%clk 0:02:33]}  Nh5 {[%clk 0:02:02]} 18. g4 {[%clk 0:02:21]}  Nf6 {[%clk 0:02:02]} 19. Bf2 {[%clk 0:01:31]}  h5 {[%clk 0:01:59]} 20. e5 {[%clk 0:01:12]}  Nh7 {[%clk 0:01:51]} 21. e6 {[%clk 0:01:07]}  hxg4 {[%clk 0:01:45]} 22. hxg4 {[%clk 0:01:06]}  fxe6 {[%clk 0:01:33]} 23. Ne2 {[%clk 0:00:23]}  e5 {[%clk 0:01:21]} 24. Qxg6 {[%clk 0:00:16]}  exf4 {[%clk 0:01:17]} 25. Bd3 {[%clk 0:00:13]}  Nf6 {[%clk 0:01:13]} 26. g5 {[%clk 0:00:13]}  Qxd5 {[%clk 0:01:04]} 27. gxf6 {[%clk 0:00:13]}  Rxf6 {[%clk 0:01:05]} 28. Qh7+ {[%clk 0:00:07]}  Kf8 {[%clk 0:01:05]} 29. Bh4 {[%clk 0:00:06]}  Qxf3 {[%clk 0:00:52]} 30. Bxf6 {[%clk 0:00:06]}  Bxf6 {[%clk 0:00:53]} 31. Be4 {[%clk 0:00:05]}  Qg4+ {[%clk 0:00:52]} 32. Kf1 {[%clk 0:00:03]}  Nd4 {[%clk 0:00:49]} 33. Nxd4 {[%clk 0:00:02]}  Bxd4 {[%clk 0:00:49]} 34. Bg2 {[%clk 0:00:01]}  Bf6 {[%clk 0:00:37]} 35. Qe4 {[%clk 0:00:01]}  Rxb2 {[%clk 0:00:36]} 36. Qf3 {[%clk 0:00:02]}  Qh4 {[%clk 0:00:31]} 37. Rad1 {[%clk 0:00:02]}  Bg4 {[%clk 0:00:31]} 38. Qd3 {[%clk 0:00:01]}  f3 {[%clk 0:00:28]} 0-1


[Site "https://www.chess.com"]

[Event "Titled Tuesday Blitz March 01 Early 2022"]
[White "Vivas Zamora, Fabian Ernesto"]
[Black "Samarth, J Rao"]
[WhiteFideId "3902480"]
[BlackFideId "46652370"]
[WhiteElo "1966"]
[BlackElo "1514"]
[Result "0-1"]
[Round "04"]
[TimeControl "180+1"]
[Date "2022.03.01"]
[WhiteClock "0:00:01"]
[BlackClock "0:01:12"]

1. c4 {[%clk 0:03:00]}  c5 {[%clk 0:02:59]} 2. Nf3 {[%clk 0:02:55]}  Nc6 {[%clk 0:02:57]} 3. d4 {[%clk 0:02:52]}  cxd4 {[%clk 0:02:57]} 4. Nxd4 {[%clk 0:02:53]}  Nf6 {[%clk 0:02:52]} 5. Nc3 {[%clk 0:02:41]}  g6 {[%clk 0:02:49]} 6. Nc2 {[%clk 0:02:40]}  Bg7 {[%clk 0:02:48]} 7. e4 {[%clk 0:02:40]}  d6 {[%clk 0:02:48]} 8. Be2 {[%clk 0:02:40]}  O-O {[%clk 0:02:47]} 9. O-O {[%clk 0:02:40]}  Be6 {[%clk 0:02:46]} 10. Be3 {[%clk 0:02:37]}  a5 {[%clk 0:02:44]} 11. Qd2 {[%clk 0:02:16]}  a4 {[%clk 0:02:41]} 12. Bh6 {[%clk 0:02:16]}  Qa5 {[%clk 0:02:39]} 13. Bxg7 {[%clk 0:02:14]}  Kxg7 {[%clk 0:02:40]} 14. b4 {[%clk 0:01:51]}  Nxb4 {[%clk 0:02:33]} 15. Nxb4 {[%clk 0:01:50]}  Qxb4 {[%clk 0:02:16]} 16. Rab1 {[%clk 0:01:50]}  Qa5 {[%clk 0:02:13]} 17. Rxb7 {[%clk 0:01:45]}  Rac8 {[%clk 0:02:12]} 18. Rb5 {[%clk 0:01:23]}  Qc7 {[%clk 0:02:08]} 19. Nd5 {[%clk 0:01:21]}  Bxd5 {[%clk 0:02:04]} 20. exd5 {[%clk 0:01:15]}  Rb8 {[%clk 0:02:01]} 21. Rfb1 {[%clk 0:01:11]}  Rxb5 {[%clk 0:01:57]} 22. Rxb5 {[%clk 0:01:12]}  Rc8 {[%clk 0:01:55]} 23. Qb4 {[%clk 0:00:59]}  Qa7 {[%clk 0:01:49]} 24. Rb6 {[%clk 0:00:28]}  Rc7 {[%clk 0:01:23]} 25. h3 {[%clk 0:00:28]}  Nd7 {[%clk 0:01:23]} 26. Rb5 {[%clk 0:00:12]}  Ne5 {[%clk 0:01:18]} 27. Qc3 {[%clk 0:00:03]}  f6 {[%clk 0:01:15]} 28. Kf1 {[%clk 0:00:02]}  Qa6 {[%clk 0:01:13]} 29. Ra5 {[%clk 0:00:02]}  Qb6 {[%clk 0:01:12]} 30. Rb5 {[%clk 0:00:01]}  Qxb5 {[%clk 0:01:12]} 0-1


[Site "https://www.chess.com"]

[Event "Titled Tuesday Blitz March 01 Early 2022"]
[White "Volkov, Maksim"]
[Black "Matinian, Nikita"]
[WhiteFideId "54123070"]
[BlackFideId "24129100"]
[WhiteElo "2081"]
[BlackElo "2422"]
[Result "1-0"]
[Round "04"]
[TimeControl "180+1"]
[Date "2022.03.01"]
[WhiteClock "0:00:09"]
[BlackClock "0:00:02"]

1. d4 {[%clk 0:03:00]}  Nf6 {[%clk 0:02:59]} 2. c4 {[%clk 0:03:01]}  e6 {[%clk 0:02:57]} 3. g3 {[%clk 0:03:01]}  Bb4+ {[%clk 0:02:56]} 4. Bd2 {[%clk 0:03:00]}  a5 {[%clk 0:02:56]} 5. Bg2 {[%clk 0:02:57]}  O-O {[%clk 0:02:56]} 6. Nf3 {[%clk 0:02:57]}  d5 {[%clk 0:02:57]} 7. Qc2 {[%clk 0:02:43]}  dxc4 {[%clk 0:02:53]} 8. Qxc4 {[%clk 0:02:34]}  Nbd7 {[%clk 0:02:50]} 9. Bxb4 {[%clk 0:02:26]}  Nb6 {[%clk 0:02:48]} 10. Qb3 {[%clk 0:02:23]}  axb4 {[%clk 0:02:47]} 11. Qxb4 {[%clk 0:02:23]}  Nfd5 {[%clk 0:02:43]} 12. Qb3 {[%clk 0:02:20]}  Bd7 {[%clk 0:02:41]} 13. O-O {[%clk 0:02:17]}  Ba4 {[%clk 0:02:41]} 14. Qa3 {[%clk 0:02:06]}  Bb5 {[%clk 0:02:30]} 15. Qc5 {[%clk 0:02:03]}  Bxe2 {[%clk 0:02:29]} 16. Rc1 {[%clk 0:02:03]}  Qf6 {[%clk 0:02:15]} 17. Nbd2 {[%clk 0:02:01]}  Rfd8 {[%clk 0:02:01]} 18. Ne4 {[%clk 0:01:56]}  Qh6 {[%clk 0:01:58]} 19. b3 {[%clk 0:01:46]}  Bxf3 {[%clk 0:01:48]} 20. Bxf3 {[%clk 0:01:45]}  Nd7 {[%clk 0:01:42]} 21. Qc4 {[%clk 0:01:37]}  N7f6 {[%clk 0:01:41]} 22. Nc5 {[%clk 0:01:30]}  b6 {[%clk 0:01:38]} 23. Nd3 {[%clk 0:01:29]}  Rac8 {[%clk 0:01:04]} 24. b4 {[%clk 0:01:20]}  c6 {[%clk 0:01:01]} 25. a4 {[%clk 0:01:16]}  Qg5 {[%clk 0:00:58]} 26. a5 {[%clk 0:00:58]}  bxa5 {[%clk 0:00:58]} 27. bxa5 {[%clk 0:00:58]}  Qf5 {[%clk 0:00:58]} 28. Ne5 {[%clk 0:00:54]}  c5 {[%clk 0:00:54]} 29. Kg2 {[%clk 0:00:42]}  h5 {[%clk 0:00:50]} 30. h4 {[%clk 0:00:40]}  Ng4 {[%clk 0:00:46]} 31. Nxg4 {[%clk 0:00:33]}  hxg4 {[%clk 0:00:47]} 32. Bxd5 {[%clk 0:00:33]}  exd5 {[%clk 0:00:47]} 33. Qc2 {[%clk 0:00:27]}  Qf3+ {[%clk 0:00:38]} 34. Kg1 {[%clk 0:00:26]}  Re8 {[%clk 0:00:39]} 35. Qc3 {[%clk 0:00:21]}  Qf5 {[%clk 0:00:20]} 36. dxc5 {[%clk 0:00:19]}  Re2 {[%clk 0:00:20]} 37. Qd4 {[%clk 0:00:19]}  Rce8 {[%clk 0:00:16]} 38. Rf1 {[%clk 0:00:17]}  R8e4 {[%clk 0:00:16]} 39. Qd3 {[%clk 0:00:16]}  Qe5 {[%clk 0:00:12]} 40. a6 {[%clk 0:00:15]}  R4e3 {[%clk 0:00:13]} 41. Qxe2 {[%clk 0:00:11]}  Rxe2 {[%clk 0:00:10]} 42. a7 {[%clk 0:00:11]}  d4 {[%clk 0:00:06]} 43. a8=Q+ {[%clk 0:00:12]}  Kh7 {[%clk 0:00:07]} 44. c6 {[%clk 0:00:11]}  Re3 {[%clk 0:00:04]} 45. c7 {[%clk 0:00:08]}  Rc3 {[%clk 0:00:03]} 46. c8=Q {[%clk 0:00:08]}  Rxc8 {[%clk 0:00:02]} 47. Qxc8 {[%clk 0:00:09]} 1-0


[Site "https://www.chess.com"]

[Event "Titled Tuesday Blitz March 01 Early 2022"]
[White "Vusatiuk, Vladimir"]
[Black "Dronavalli, Harika"]
[WhiteFideId "14118610"]
[BlackFideId "5015197"]
[WhiteElo "2157"]
[BlackElo "2382"]
[Result "1/2-1/2"]
[Round "04"]
[TimeControl "180+1"]
[Date "2022.03.01"]
[WhiteClock "0:00:04"]
[BlackClock "0:00:13"]

1. d4 {[%clk 0:03:00]}  Nf6 {[%clk 0:02:59]} 2. c4 {[%clk 0:03:00]}  c5 {[%clk 0:02:59]} 3. d5 {[%clk 0:03:00]}  e6 {[%clk 0:02:59]} 4. Nc3 {[%clk 0:03:00]}  exd5 {[%clk 0:02:58]} 5. cxd5 {[%clk 0:03:01]}  d6 {[%clk 0:02:59]} 6. e4 {[%clk 0:03:01]}  g6 {[%clk 0:02:57]} 7. f4 {[%clk 0:03:02]}  Bg7 {[%clk 0:02:54]} 8. Bb5+ {[%clk 0:03:02]}  Nfd7 {[%clk 0:02:34]} 9. a4 {[%clk 0:03:02]}  O-O {[%clk 0:02:34]} 10. Nf3 {[%clk 0:03:02]}  Na6 {[%clk 0:02:31]} 11. O-O {[%clk 0:03:02]}  Nb4 {[%clk 0:02:31]} 12. Re1 {[%clk 0:03:02]}  a6 {[%clk 0:02:24]} 13. Bf1 {[%clk 0:03:01]}  Re8 {[%clk 0:02:24]} 14. Be3 {[%clk 0:02:34]}  Nf6 {[%clk 0:02:23]} 15. Bf2 {[%clk 0:02:05]}  Nh5 {[%clk 0:02:22]} 16. g3 {[%clk 0:01:57]}  Bg4 {[%clk 0:02:12]} 17. Rc1 {[%clk 0:01:37]}  f5 {[%clk 0:02:01]} 18. h3 {[%clk 0:01:30]}  Bxf3 {[%clk 0:02:01]} 19. Qxf3 {[%clk 0:01:31]}  fxe4 {[%clk 0:02:00]} 20. Rxe4 {[%clk 0:01:26]}  Rxe4 {[%clk 0:01:57]} 21. Qxe4 {[%clk 0:01:27]}  Qf8 {[%clk 0:01:41]} 22. Re1 {[%clk 0:01:19]}  Nf6 {[%clk 0:01:41]} 23. Qe6+ {[%clk 0:01:19]}  Kh8 {[%clk 0:01:41]} 24. Qe7 {[%clk 0:00:30]}  Nfxd5 {[%clk 0:01:24]} 25. Nxd5 {[%clk 0:00:25]}  Nxd5 {[%clk 0:01:24]} 26. Qxb7 {[%clk 0:00:25]}  Nb4 {[%clk 0:01:17]} 27. b3 {[%clk 0:00:20]}  Rb8 {[%clk 0:00:56]} 28. Qc7 {[%clk 0:00:20]}  Rc8 {[%clk 0:00:44]} 29. Qd7 {[%clk 0:00:21]}  Rd8 {[%clk 0:00:40]} 30. Qe6 {[%clk 0:00:19]}  Nc2 {[%clk 0:00:39]} 31. Rd1 {[%clk 0:00:17]}  Bd4 {[%clk 0:00:34]} 32. Bxa6 {[%clk 0:00:14]}  Bxf2+ {[%clk 0:00:33]} 33. Kxf2 {[%clk 0:00:14]}  Nd4 {[%clk 0:00:34]} 34. Qe4 {[%clk 0:00:10]}  Re8 {[%clk 0:00:34]} 35. Qd5 {[%clk 0:00:10]}  Qe7 {[%clk 0:00:32]} 36. h4 {[%clk 0:00:06]}  Qe3+ {[%clk 0:00:25]} 37. Kg2 {[%clk 0:00:06]}  Nf5 {[%clk 0:00:18]} 38. Qd3 {[%clk 0:00:03]}  Qe7 {[%clk 0:00:17]} 39. Qc3+ {[%clk 0:00:03]}  Nd4 {[%clk 0:00:16]} 40. Rxd4 {[%clk 0:00:03]}  cxd4 {[%clk 0:00:16]} 41. Qxd4+ {[%clk 0:00:04]}  Qg7 {[%clk 0:00:16]} 42. Qxd6 {[%clk 0:00:04]}  Qb2+ {[%clk 0:00:16]} 43. Kh3 {[%clk 0:00:03]}  Qa1 {[%clk 0:00:16]} 44. Bd3 {[%clk 0:00:02]}  Qh1+ {[%clk 0:00:15]} 45. Kg4 {[%clk 0:00:03]}  Qa1 {[%clk 0:00:14]} 46. h5 {[%clk 0:00:02]}  Qd1+ {[%clk 0:00:13]} 47. Kh3 {[%clk 0:00:01]}  Qxh5+ {[%clk 0:00:14]} 48. Kg2 {[%clk 0:00:02]}  Re2+ {[%clk 0:00:11]} 49. Bxe2 {[%clk 0:00:02]}  Qxe2+ {[%clk 0:00:12]} 50. Kg1 {[%clk 0:00:03]}  Qe1+ {[%clk 0:00:12]} 51. Kg2 {[%clk 0:00:03]}  Qe2+ {[%clk 0:00:13]} 52. Kh3 {[%clk 0:00:04]}  Qh5+ {[%clk 0:00:13]} 53. Kg2 {[%clk 0:00:04]}  Qe2+ {[%clk 0:00:13]} 1/2-1/2


[Site "https://www.chess.com"]

[Event "Titled Tuesday Blitz March 01 Early 2022"]
[White "Wagner, Dennis"]
[Black "Bethke, Richard"]
[WhiteFideId "24650684"]
[BlackFideId "12959243"]
[WhiteElo "2355"]
[BlackElo "2522"]
[Result "1-0"]
[Round "04"]
[TimeControl "180+1"]
[Date "2022.03.01"]
[WhiteClock "0:00:10"]
[BlackClock "0:00:01"]

1. e4 {[%clk 0:03:00]}  c5 {[%clk 0:03:00]} 2. Nf3 {[%clk 0:03:01]}  d6 {[%clk 0:03:00]} 3. Bb5+ {[%clk 0:02:59]}  Bd7 {[%clk 0:03:00]} 4. c4 {[%clk 0:02:58]}  Nf6 {[%clk 0:03:00]} 5. Nc3 {[%clk 0:02:59]}  g6 {[%clk 0:03:00]} 6. O-O {[%clk 0:02:59]}  Bg7 {[%clk 0:03:00]} 7. d4 {[%clk 0:02:59]}  cxd4 {[%clk 0:03:01]} 8. Nxd4 {[%clk 0:03:00]}  O-O {[%clk 0:03:01]} 9. Bxd7 {[%clk 0:03:00]}  Nbxd7 {[%clk 0:02:59]} 10. h3 {[%clk 0:02:44]}  Qb6 {[%clk 0:02:45]} 11. Nde2 {[%clk 0:02:35]}  Nc5 {[%clk 0:02:36]} 12. Qc2 {[%clk 0:02:13]}  Qb4 {[%clk 0:02:15]} 13. b3 {[%clk 0:01:58]}  Rfe8 {[%clk 0:01:39]} 14. Bd2 {[%clk 0:01:56]}  Qb6 {[%clk 0:01:37]} 15. Rab1 {[%clk 0:01:55]}  a5 {[%clk 0:01:32]} 16. Be3 {[%clk 0:01:52]}  Qc6 {[%clk 0:01:28]} 17. Rfd1 {[%clk 0:01:48]}  Nfxe4 {[%clk 0:01:19]} 18. Nd5 {[%clk 0:01:38]}  e6 {[%clk 0:01:07]} 19. Ndf4 {[%clk 0:01:35]}  Rad8 {[%clk 0:00:58]} 20. Nd4 {[%clk 0:01:30]}  Bxd4 {[%clk 0:00:57]} 21. Bxd4 {[%clk 0:01:30]}  e5 {[%clk 0:00:46]} 22. Bxc5 {[%clk 0:01:29]}  dxc5 {[%clk 0:00:47]} 23. Nd5 {[%clk 0:01:29]}  Nf6 {[%clk 0:00:46]} 24. Ne7+ {[%clk 0:01:25]}  Rxe7 {[%clk 0:00:42]} 25. Rxd8+ {[%clk 0:01:25]}  Kg7 {[%clk 0:00:43]} 26. Rbd1 {[%clk 0:01:24]}  Re6 {[%clk 0:00:30]} 27. Qc3 {[%clk 0:01:15]}  Nh5 {[%clk 0:00:18]} 28. Ra8 {[%clk 0:00:36]}  Nf4 {[%clk 0:00:17]} 29. Qf3 {[%clk 0:00:23]}  Qxf3 {[%clk 0:00:17]} 30. gxf3 {[%clk 0:00:24]}  b6 {[%clk 0:00:17]} 31. h4 {[%clk 0:00:22]}  Ne2+ {[%clk 0:00:16]} 32. Kg2 {[%clk 0:00:21]}  Nd4 {[%clk 0:00:17]} 33. Rb8 {[%clk 0:00:19]}  Rf6 {[%clk 0:00:16]} 34. Rd3 {[%clk 0:00:19]}  Re6 {[%clk 0:00:13]} 35. h5 {[%clk 0:00:16]}  gxh5 {[%clk 0:00:13]} 36. Re3 {[%clk 0:00:15]}  f6 {[%clk 0:00:08]} 37. f4 {[%clk 0:00:14]}  Nf5 {[%clk 0:00:06]} 38. Re1 {[%clk 0:00:13]}  h4 {[%clk 0:00:04]} 39. fxe5 {[%clk 0:00:13]}  fxe5 {[%clk 0:00:05]} 40. Re4 {[%clk 0:00:11]}  Nd4 {[%clk 0:00:04]} 41. Rxh4 {[%clk 0:00:10]}  Rg6+ {[%clk 0:00:04]} 42. Kf1 {[%clk 0:00:10]}  Nf3 {[%clk 0:00:04]} 43. Rh3 {[%clk 0:00:09]}  Nd2+ {[%clk 0:00:04]} 44. Ke2 {[%clk 0:00:10]}  Ne4 {[%clk 0:00:04]} 45. Re3 {[%clk 0:00:09]}  Rg4 {[%clk 0:00:03]} 46. Rb7+ {[%clk 0:00:09]}  Kg6 {[%clk 0:00:02]} 47. Rxb6+ {[%clk 0:00:09]}  Kf5 {[%clk 0:00:03]} 48. f3 {[%clk 0:00:09]}  Rg2+ {[%clk 0:00:03]} 49. Kf1 {[%clk 0:00:10]}  Rf2+ {[%clk 0:00:01]} 50. Ke1 {[%clk 0:00:10]}  Rxa2 {[%clk 0:00:01]} 51. Rxe4 {[%clk 0:00:10]} 1-0


[Site "https://www.chess.com"]

[Event "Titled Tuesday Blitz March 01 Early 2022"]
[White "Yilmaz, Mustafa"]
[Black "Obolenskikh, Dmitry"]
[WhiteFideId "6302718"]
[BlackFideId "4156013"]
[WhiteElo "2568"]
[BlackElo "2512"]
[Result "0-1"]
[Round "04"]
[TimeControl "180+1"]
[Date "2022.03.01"]
[WhiteClock "0:00:17"]
[BlackClock "0:00:31"]

1. c4 {[%clk 0:03:00]}  e6 {[%clk 0:02:59]} 2. Nc3 {[%clk 0:03:01]}  d5 {[%clk 0:02:59]} 3. d4 {[%clk 0:03:01]}  c6 {[%clk 0:02:59]} 4. e3 {[%clk 0:02:57]}  Nf6 {[%clk 0:02:58]} 5. Nf3 {[%clk 0:02:57]}  Nbd7 {[%clk 0:02:58]} 6. Qc2 {[%clk 0:02:57]}  Bd6 {[%clk 0:02:57]} 7. Bd3 {[%clk 0:02:55]}  dxc4 {[%clk 0:02:57]} 8. Bxc4 {[%clk 0:02:55]}  O-O {[%clk 0:02:57]} 9. O-O {[%clk 0:02:55]}  b5 {[%clk 0:02:56]} 10. Be2 {[%clk 0:02:55]}  Bb7 {[%clk 0:02:49]} 11. Rd1 {[%clk 0:02:55]}  Qe7 {[%clk 0:02:44]} 12. e4 {[%clk 0:02:51]}  e5 {[%clk 0:02:44]} 13. dxe5 {[%clk 0:02:48]}  Nxe5 {[%clk 0:02:43]} 14. Nd4 {[%clk 0:02:48]}  Bc5 {[%clk 0:02:23]} 15. Nf5 {[%clk 0:02:24]}  Qe6 {[%clk 0:02:23]} 16. Be3 {[%clk 0:02:23]}  Bxe3 {[%clk 0:02:17]} 17. Nxe3 {[%clk 0:02:24]}  Ng6 {[%clk 0:02:15]} 18. Nf5 {[%clk 0:02:15]}  Rfd8 {[%clk 0:02:12]} 19. b4 {[%clk 0:01:59]}  c5 {[%clk 0:01:44]} 20. f3 {[%clk 0:01:58]}  cxb4 {[%clk 0:01:42]} 21. Nxb5 {[%clk 0:01:58]}  Qb6+ {[%clk 0:01:42]} 22. Kh1 {[%clk 0:01:58]}  Rac8 {[%clk 0:01:40]} 23. Rxd8+ {[%clk 0:01:43]}  Rxd8 {[%clk 0:01:40]} 24. Rd1 {[%clk 0:01:35]}  Rxd1+ {[%clk 0:01:38]} 25. Qxd1 {[%clk 0:01:36]}  h5 {[%clk 0:01:17]} 26. Nbd6 {[%clk 0:01:29]}  Ba6 {[%clk 0:01:14]} 27. h4 {[%clk 0:01:07]}  Bxe2 {[%clk 0:01:11]} 28. Qxe2 {[%clk 0:01:07]}  Qc5 {[%clk 0:00:57]} 29. Qd1 {[%clk 0:00:59]}  Nf4 {[%clk 0:00:46]} 30. Ne7+ {[%clk 0:00:34]}  Kh7 {[%clk 0:00:39]} 31. Ndf5 {[%clk 0:00:25]}  g6 {[%clk 0:00:35]} 32. Nd6 {[%clk 0:00:18]}  Qf2 {[%clk 0:00:32]} 33. Nxf7 {[%clk 0:00:17]}  Qxg2# {[%clk 0:00:31]} 0-1


[Site "https://www.chess.com"]

[Event "Titled Tuesday Blitz March 01 Early 2022"]
[White "Yurtseven, Melih"]
[Black "Weetik, Vjacheslav"]
[WhiteFideId "6312160"]
[BlackFideId "4153472"]
[WhiteElo "2160"]
[BlackElo "2469"]
[Result "1-0"]
[Round "04"]
[TimeControl "180+1"]
[Date "2022.03.01"]
[WhiteClock "0:00:36"]
[BlackClock "0:00:03"]

1. Nf3 {[%clk 0:03:00]}  Nf6 {[%clk 0:02:56]} 2. g3 {[%clk 0:03:01]}  d5 {[%clk 0:02:55]} 3. Bg2 {[%clk 0:03:01]}  c6 {[%clk 0:02:55]} 4. O-O {[%clk 0:02:58]}  Bg4 {[%clk 0:02:54]} 5. b3 {[%clk 0:02:46]}  Nbd7 {[%clk 0:02:54]} 6. Bb2 {[%clk 0:02:46]}  e6 {[%clk 0:02:52]} 7. d3 {[%clk 0:02:46]}  Be7 {[%clk 0:02:51]} 8. Nbd2 {[%clk 0:02:46]}  a5 {[%clk 0:02:50]} 9. a3 {[%clk 0:02:46]}  O-O {[%clk 0:02:49]} 10. c4 {[%clk 0:02:46]}  Qb8 {[%clk 0:02:48]} 11. Qb1 {[%clk 0:02:12]}  Re8 {[%clk 0:02:44]} 12. e4 {[%clk 0:02:02]}  dxe4 {[%clk 0:02:42]} 13. dxe4 {[%clk 0:02:03]}  e5 {[%clk 0:02:40]} 14. Bc3 {[%clk 0:01:18]}  Bf8 {[%clk 0:02:28]} 15. b4 {[%clk 0:01:17]}  a4 {[%clk 0:02:21]} 16. Qb2 {[%clk 0:01:17]}  b5 {[%clk 0:02:15]} 17. Rfe1 {[%clk 0:01:14]}  Qc7 {[%clk 0:01:21]} 18. c5 {[%clk 0:01:14]}  h6 {[%clk 0:01:06]} 19. h3 {[%clk 0:01:14]}  Bh5 {[%clk 0:01:04]} 20. Nf1 {[%clk 0:01:12]}  Bxf3 {[%clk 0:01:03]} 21. Bxf3 {[%clk 0:01:12]}  g6 {[%clk 0:00:57]} 22. Ne3 {[%clk 0:01:11]}  h5 {[%clk 0:00:50]} 23. Rad1 {[%clk 0:01:10]}  h4 {[%clk 0:00:43]} 24. gxh4 {[%clk 0:01:05]}  Bh6 {[%clk 0:00:40]} 25. Ng2 {[%clk 0:01:04]}  Re6 {[%clk 0:00:30]} 26. Bg4 {[%clk 0:01:01]}  Re7 {[%clk 0:00:28]} 27. Rd6 {[%clk 0:01:00]}  Bg7 {[%clk 0:00:25]} 28. Red1 {[%clk 0:00:57]}  Nf8 {[%clk 0:00:18]} 29. f3 {[%clk 0:00:47]}  Rae8 {[%clk 0:00:18]} 30. Ne3 {[%clk 0:00:44]}  Nxg4 {[%clk 0:00:10]} 31. Nxg4 {[%clk 0:00:40]}  Ne6 {[%clk 0:00:07]} 32. Bxe5 {[%clk 0:00:36]}  Bxe5 {[%clk 0:00:05]} 33. Qxe5 {[%clk 0:00:37]}  Ng5 {[%clk 0:00:03]} 34. Qxg5 {[%clk 0:00:36]} 1-0


[Site "https://www.chess.com"]

[Event "Titled Tuesday Blitz March 01 Early 2022"]
[White "Zaksaite, Salomeja"]
[Black "Dauner, Benedikt"]
[WhiteFideId "12801496"]
[BlackFideId "16225899"]
[WhiteElo "2002"]
[BlackElo "2230"]
[Result "0-1"]
[Round "04"]
[TimeControl "180+1"]
[Date "2022.03.01"]
[WhiteClock "0:00:01"]
[BlackClock "0:00:28"]

1. e4 {[%clk 0:02:51]}  c5 {[%clk 0:02:59]} 2. Nf3 {[%clk 0:02:50]}  e6 {[%clk 0:02:59]} 3. d4 {[%clk 0:02:50]}  cxd4 {[%clk 0:03:00]} 4. Nxd4 {[%clk 0:02:50]}  Nf6 {[%clk 0:03:00]} 5. Nc3 {[%clk 0:02:49]}  Bb4 {[%clk 0:03:00]} 6. Bd3 {[%clk 0:02:46]}  Nc6 {[%clk 0:02:59]} 7. Nxc6 {[%clk 0:02:41]}  bxc6 {[%clk 0:02:56]} 8. Bd2 {[%clk 0:02:41]}  d5 {[%clk 0:02:53]} 9. exd5 {[%clk 0:02:40]}  cxd5 {[%clk 0:02:50]} 10. O-O {[%clk 0:02:40]}  O-O {[%clk 0:02:50]} 11. Qf3 {[%clk 0:02:33]}  Rb8 {[%clk 0:02:39]} 12. Bg5 {[%clk 0:01:57]}  h6 {[%clk 0:02:37]} 13. Bh4 {[%clk 0:01:51]}  Be7 {[%clk 0:02:30]} 14. b3 {[%clk 0:01:49]}  Bb7 {[%clk 0:01:54]} 15. Qe2 {[%clk 0:01:15]}  Rc8 {[%clk 0:01:51]} 16. Na4 {[%clk 0:00:57]}  Bc6 {[%clk 0:01:45]} 17. Nb2 {[%clk 0:00:54]}  Re8 {[%clk 0:01:44]} 18. c4 {[%clk 0:00:53]}  Bb7 {[%clk 0:01:33]} 19. Rfd1 {[%clk 0:00:45]}  Qa5 {[%clk 0:01:31]} 20. cxd5 {[%clk 0:00:34]}  Bxd5 {[%clk 0:01:25]} 21. Nc4 {[%clk 0:00:31]}  Qc7 {[%clk 0:01:18]} 22. Rac1 {[%clk 0:00:30]}  Qb7 {[%clk 0:01:18]} 23. Ne3 {[%clk 0:00:22]}  Bc6 {[%clk 0:01:16]} 24. Ba6 {[%clk 0:00:21]}  Qb6 {[%clk 0:01:05]} 25. Bxc8 {[%clk 0:00:20]}  Rxc8 {[%clk 0:01:06]} 26. Nc4 {[%clk 0:00:20]}  Qa6 {[%clk 0:01:02]} 27. Qb2 {[%clk 0:00:12]}  Bd5 {[%clk 0:01:00]} 28. Ne3 {[%clk 0:00:11]}  Bc6 {[%clk 0:00:58]} 29. Nc4 {[%clk 0:00:11]}  Bd5 {[%clk 0:00:58]} 30. Ne3 {[%clk 0:00:12]}  Bc6 {[%clk 0:00:53]} 31. h3 {[%clk 0:00:11]}  Ba3 {[%clk 0:00:47]} 32. Qd2 {[%clk 0:00:06]}  Bxc1 {[%clk 0:00:47]} 33. Rxc1 {[%clk 0:00:06]}  Nd5 {[%clk 0:00:46]} 34. Nxd5 {[%clk 0:00:04]}  Bxd5 {[%clk 0:00:47]} 35. Rxc8+ {[%clk 0:00:03]}  Qxc8 {[%clk 0:00:48]} 36. Bg3 {[%clk 0:00:03]}  Qa6 {[%clk 0:00:44]} 37. Be5 {[%clk 0:00:03]}  Qb5 {[%clk 0:00:36]} 38. Bc3 {[%clk 0:00:02]}  f6 {[%clk 0:00:32]} 39. Qd4 {[%clk 0:00:02]}  Qe2 {[%clk 0:00:30]} 40. Qxa7 {[%clk 0:00:01]}  Qe4 {[%clk 0:00:28]} 0-1


[Site "https://www.chess.com"]